[Event "Turkish Cup 2024"]
[Site "Denizli"]
[Date "2024.08.06"]
[Round "11"]
[White "Aydogdu, Aril"]
[Black "Pekkul, Arda"]
[Result "0-1"]
[ECO "B22"]
[WhiteElo "1733"]
[BlackElo "1939"]
[Annotator "NA RC"]
[PlyCount "60"]
[EventDate "2024.08.01"]
[EventType "swiss"]
[EventCountry "TUR"]
[SourceTitle "playchess.com"]
[Source "ChessBase"]
[SourceQuality "1"]
[TimeControl "5400+30"]

1. e4 {[%emt 0:04:00]} c5 {[%emt 0:01:00]} 2. c3 {[%emt 0:00:30]} d5 {[%emt 0:00:30]} 3. exd5 {[%emt 0:00:30]} Qxd5 {[%emt 0:00:30]} 4. d4 {[%emt 0:00:00]} Nf6 {[%emt 0:00:00]} 5. Nf3 {[%emt 0:00:00]} e6 {[%emt 0:00:00]} 6. Be2 {[%emt 0:00:30]} Nc6 {[%emt 0:00:00]} 7. Be3 {[%emt 0:00:30]} cxd4 {[%emt 0:00:00]} 8. Nxd4 {[%emt 0:00:30]} Nxd4 {[%emt 0:03:30]} 9. Bxd4 {[%emt 0:01:30]} Qxg2 {[%emt 0:19:30]} 10. Bf3 {[%emt 0:00:30]} Qg6 {[%emt 0:00:30]} 11. Nd2 {[%emt 0:03:30]} Be7 {[%emt 0:02:30]} 12. Qb3 {[%emt 0:01:30]} O-O {[%emt 0:00:30]} 13. O-O-O {[%emt 0:00:30]} Qf5 {[%emt 0:00:30]} 14. Rde1 {[%emt 0:02:30]} a5 {[%emt 0:05:30]} 15. Rhg1 {[%emt 0:11:30]} a4 {[%emt 0:00:00]} 16. Qd1 {[%emt 0:01:30]} g6 {[%emt 0:00:00]} 17. h4 {[%emt 0:03:30]} Bd7 {[%emt 0:01:30]} 18. Rg5 {[%emt 0:18:30]} Qf4 {[%emt 0:00:30]} 19. Be5 {[%emt 0:00:00]} Qxh4 {[%emt 0:01:30]} 20. Bxf6 {[%emt 0:02:00]} Bxf6 {[%emt 0:00:00]} 21. Rg4 {[%emt 0:01:30]} Qh6 {[%emt 0:00:00]} 22. Rh1 {[%emt 0:02:30]} Qg7 {[%emt 0:00:30]} 23. Bxb7 {[%emt 0:04:30]} Rab8 {[%emt 0:07:30]} 24. Qf3 {[%emt 0:00:30]} a3 {[%emt 0:08:30]} 25. Ne4 {[%emt 0:00:30]} axb2+ {[%emt 0:00:30]} 26. Kb1 {[%emt 0:00:30]} Be7 {[%emt 0:02:30]} 27. Ng3 {[%emt 0:01:30]} f5 {[%emt 0:04:30]} 28. Rc4 {[%emt 0:01:30]} Bd6 {[%emt 0:02:30]} 29. Rd1 {[%emt 0:01:30]} Bxg3 {[%emt 0:02:30]} 30. fxg3 {[%emt 0:01:30]} Bb5 {[%emt 0:00:30]} 0-1

[Event "Turkish Cup 2024"]
[Site "Denizli"]
[Date "2024.08.06"]
[Round "11"]
[White "Cizer, Ahmet Kaan"]
[Black "Kilic, Nurullah"]
[Result "1-0"]
[ECO "C44"]
[WhiteElo "1714"]
[BlackElo "1907"]
[Annotator "NA RC"]
[PlyCount "77"]
[EventDate "2024.08.01"]
[EventType "swiss"]
[EventCountry "TUR"]
[SourceTitle "playchess.com"]
[Source "ChessBase"]
[SourceQuality "1"]
[TimeControl "5400+30"]

1. e4 {[%emt 0:01:00]} e5 {[%emt 0:02:00]} 2. Nf3 {[%emt 0:00:00]} Nc6 {[%emt 0:00:30]} 3. c3 {[%emt 0:01:00]} d5 {[%emt 0:02:30]} 4. Qa4 {[%emt 0:00:30]} Bd7 {[%emt 0:09:30]} 5. exd5 {[%emt 0:02:30]} Nd4 {[%emt 0:00:30]} 6. Qd1 {[%emt 0:00:30]} Nxf3+ {[%emt 0:00:00]} 7. Qxf3 {[%emt 0:00:00]} Nf6 {[%emt 0:00:00]} 8. Bc4 {[%emt 0:02:00]} Bd6 {[%emt 0:02:30]} 9. h3 {[%emt 0:01:30]} O-O {[%emt 0:05:30]} 10. d3 {[%emt 0:02:30]} h6 {[%emt 0:08:30]} 11. O-O {[%emt 0:00:30]} Qe7 {[%emt 0:00:30]} 12. Nd2 {[%emt 0:00:30]} Ne8 {[%emt 0:04:30]} 13. Ne4 {[%emt 0:05:30]} f5 {[%emt 0:00:00]} 14. Nc5 {[%emt 0:00:00]} Bc8 {[%emt 0:08:00]} 15. Qe2 {[%emt 0:03:00]} f4 {[%emt 0:03:30]} 16. Qf3 {[%emt 0:04:30]} Nf6 {[%emt 0:05:30]} 17. Re1 {[%emt 0:03:30]} Nh7 {[%emt 0:00:30]} 18. Qh5 {[%emt 0:08:30]} f3 {[%emt 0:07:30]} 19. g3 {[%emt 0:07:30]} Rf5 {[%emt 0:12:30]} 20. Qg6 {[%emt 0:01:30]} Nf8 {[%emt 0:03:30]} 21. Qg4 {[%emt 0:00:30]} Qf7 {[%emt 0:04:08]} 22. Ne6 {[%emt 0:04:30]} h5 {[%emt 0:01:38]} 23. Qe4 {[%emt 0:01:30]} Nh7 {[%emt 0:02:42]} 24. d4 {[%emt 0:06:30]} exd4 {[%emt 0:02:08]} 25. Bd3 {[%emt 0:01:30]} g6 {[%emt 0:00:04]} 26. Qxd4 {[%emt 0:01:30]} c5 {[%emt 0:01:04]} 27. dxc6 {[%emt 0:01:30]} Bxe6 {[%emt 0:00:26]} 28. Bxf5 {[%emt 0:00:30]} Qxf5 {[%emt 0:00:06]} 29. Qxd6 {[%emt 0:00:30]} Re8 {[%emt 0:00:18]} 30. Qf4 {[%emt 0:00:30]} Qxh3 {[%emt 0:00:45]} 31. Qxf3 {[%emt 0:00:30]} bxc6 {[%emt 0:00:43]} 32. Qxc6 {[%emt 0:03:30]} Re7 {[%emt 0:00:15]} 33. Bf4 {[%emt 0:01:30]} h4 {[%emt 0:02:43]} 34. Rad1 {[%emt 0:01:30]} g5 {[%emt 0:00:43]} 35. Qc5 {[%emt 0:01:30]} Rf7 {[%emt 0:00:59]} 36. Rd8+ {[%emt 0:00:30]} Kg7 {[%emt 0:00:50]} 37. Qe5+ {[%emt 0:00:30]} Kg6 {[%emt 0:01:25]} 38. Rg8+ {[%emt 0:00:30]} Kh5 {[%emt 0:00:17]} 39. Rxg5+ {[%emt 0:00:30]} 1-0

[Event "Turkish Cup 2024"]
[Site "Denizli"]
[Date "2024.08.06"]
[Round "11"]
[White "Yogurtcuoglu, Cagan"]
[Black "Tokat, Nehir"]
[Result "1/2-1/2"]
[ECO "E91"]
[WhiteElo "1713"]
[BlackElo "1892"]
[Annotator "NA RC"]
[PlyCount "61"]
[EventDate "2024.08.01"]
[EventType "swiss"]
[EventCountry "TUR"]
[SourceTitle "playchess.com"]
[Source "ChessBase"]
[SourceQuality "1"]
[TimeControl "5400+30"]

1. d4 {[%emt 0:02:00]} c5 {[%emt 0:01:00]} 2. d5 {[%emt 0:01:30]} d6 {[%emt 0:00:30]} 3. c4 {[%emt 0:00:30]} g6 {[%emt 0:00:30]} 4. Nc3 {[%emt 0:00:30]} Bg7 {[%emt 0:00:00]} 5. e4 {[%emt 0:00:00]} Na6 {[%emt 0:03:00]} 6. Be2 {[%emt 0:00:00]} Nc7 {[%emt 0:00:30]} 7. Nf3 {[%emt 0:00:30]} Nf6 {[%emt 0:00:30]} 8. O-O {[%emt 0:00:30]} O-O {[%emt 0:00:00]} 9. h3 {[%emt 0:01:30]} a6 {[%emt 0:01:00]} 10. a4 {[%emt 0:07:30]} b6 {[%emt 0:00:00]} 11. Re1 {[%emt 0:02:30]} Bd7 {[%emt 0:01:00]} 12. Bf1 {[%emt 0:00:00]} Rb8 {[%emt 0:01:30]} 13. e5 {[%emt 0:05:00]} dxe5 {[%emt 0:03:30]} 14. Nxe5 {[%emt 0:00:00]} Nfe8 {[%emt 0:14:30]} 15. Bf4 {[%emt 0:06:00]} Nd6 {[%emt 0:06:30]} 16. Nc6 {[%emt 0:11:30]} Bxc6 {[%emt 0:02:30]} 17. dxc6 {[%emt 0:00:30]} Bd4 {[%emt 0:12:30]} 18. Qf3 {[%emt 0:01:30]} Re8 {[%emt 0:05:30]} 19. Bxd6 {[%emt 0:22:30]} Qxd6 {[%emt 0:03:30]} 20. Rad1 {[%emt 0:01:30]} f5 {[%emt 0:07:30]} 21. g4 {[%emt 0:03:30]} fxg4 {[%emt 0:01:30]} 22. Qxg4 {[%emt 0:00:30]} Qxc6 {[%emt 0:01:30]} 23. Bg2 {[%emt 0:00:30]} Qf6 {[%emt 0:01:30]} 24. Re2 {[%emt 0:02:30]} Rbd8 {[%emt 0:10:30]} 25. Rde1 {[%emt 0:00:30]} e6 {[%emt 0:06:30]} 26. Ne4 {[%emt 0:02:30]} Qf5 {[%emt 0:00:24]} 27. Qg3 {[%emt 0:00:30]} e5 {[%emt 0:02:12]} 28. Ng5 {[%emt 0:01:30]} Qf4 {[%emt 0:06:00]} 29. Qxf4 {[%emt 0:01:30]} exf4 {[%emt 0:00:07]} 30. Bd5+ {[%emt 0:00:30]} Kg7 {[%emt 0:04:30]} 31. Rxe8 {[%emt 0:03:30]} 1/2-1/2

[Event "Turkish Cup 2024"]
[Site "Denizli"]
[Date "2024.08.06"]
[Round "11"]
[White "Ozturk, Baran"]
[Black "Saricam, Ege"]
[Result "0-1"]
[ECO "E91"]
[WhiteElo "1701"]
[BlackElo "1794"]
[Annotator "NA RC"]
[PlyCount "98"]
[EventDate "2024.08.01"]
[EventType "swiss"]
[EventCountry "TUR"]
[SourceTitle "playchess.com"]
[Source "ChessBase"]
[SourceQuality "1"]
[TimeControl "5400+30"]

1. d4 {[%emt 0:01:00]} Nf6 {[%emt 0:01:00]} 2. c4 {[%emt 0:00:00]} g6 {[%emt 0:00:00]} 3. Nc3 {[%emt 0:02:00]} Bg7 {[%emt 0:00:00]} 4. e4 {[%emt 0:00:30]} d6 {[%emt 0:00:00]} 5. Nf3 {[%emt 0:00:30]} Bg4 {[%emt 0:00:00]} 6. Be2 {[%emt 0:00:30]} O-O {[%emt 0:01:30]} 7. Bg5 {[%emt 0:03:30]} Nfd7 {[%emt 0:05:30]} 8. h3 {[%emt 0:01:30]} Bxf3 {[%emt 0:00:30]} 9. Bxf3 {[%emt 0:00:30]} Nc6 {[%emt 0:00:00]} 10. Be3 {[%emt 0:01:30]} e5 {[%emt 0:00:00]} 11. d5 {[%emt 0:00:00]} Nd4 {[%emt 0:01:30]} 12. Bxd4 {[%emt 0:15:00]} exd4 {[%emt 0:00:00]} 13. Nb5 {[%emt 0:00:30]} c5 {[%emt 0:03:00]} 14. O-O {[%emt 0:02:30]} a6 {[%emt 0:01:30]} 15. Na3 {[%emt 0:00:30]} Re8 {[%emt 0:00:30]} 16. Re1 {[%emt 0:01:30]} Rb8 {[%emt 0:00:30]} 17. Rb1 {[%emt 0:03:30]} b5 {[%emt 0:08:30]} 18. b4 {[%emt 0:06:30]} Ne5 {[%emt 0:07:30]} 19. Be2 {[%emt 0:03:30]} bxc4 {[%emt 0:06:30]} 20. Nxc4 {[%emt 0:00:30]} Rxb4 {[%emt 0:22:30]} 21. Rxb4 {[%emt 0:01:30]} cxb4 {[%emt 0:00:30]} 22. Nxe5 {[%emt 0:01:30]} Bxe5 {[%emt 0:00:00]} 23. Bxa6 {[%emt 0:00:30]} Qa5 {[%emt 0:00:00]} 24. Bc4 {[%emt 0:02:30]} d3 {[%emt 0:00:30]} 25. Rf1 {[%emt 0:09:30]} b3 {[%emt 0:02:30]} 26. Bxb3 {[%emt 0:03:30]} Qc3 {[%emt 0:04:30]} 27. Qf3 {[%emt 0:04:30]} d2 {[%emt 0:08:30]} 28. Qxc3 {[%emt 0:03:30]} Bxc3 {[%emt 0:00:30]} 29. Bc2 {[%emt 0:02:30]} Kg7 {[%emt 0:02:30]} 30. g3 {[%emt 0:06:30]} Bb4 {[%emt 0:05:30]} 31. Kg2 {[%emt 0:04:30]} Rc8 {[%emt 0:00:30]} 32. Bb3 {[%emt 0:00:30]} Kf6 {[%emt 0:02:44]} 33. f4 {[%emt 0:04:03]} Rc3 {[%emt 0:00:18]} 34. g4 {[%emt 0:05:24]} h5 {[%emt 0:01:38]} 35. g5+ {[%emt 0:00:30]} Ke7 {[%emt 0:00:25]} 36. e5 {[%emt 0:01:56]} Re3 {[%emt 0:00:05]} 37. e6 {[%emt 0:00:19]} fxe6 {[%emt 0:00:30]} 38. dxe6 {[%emt 0:00:00]} Re2+ {[%emt 0:00:00]} 39. Kf3 {[%emt 0:00:48]} Re1 {[%emt 0:00:03]} 40. Kg2 {[%emt 0:00:20]} d5 {[%emt 0:00:04]} 41. f5 {[%emt 0:06:31]} gxf5 {[%emt 0:06:26]} 42. Rxf5 {[%emt 0:03:08]} d1=Q {[%emt 0:00:14]} 43. Bxd1 {[%emt 0:00:12]} Rxd1 {[%emt 0:00:05]} 44. g6 {[%emt 0:00:07]} Bc5 {[%emt 0:02:29]} 45. Rxh5 {[%emt 0:02:15]} Kxe6 {[%emt 0:00:18]} 46. Kf3 {[%emt 0:00:36]} Kf6 {[%emt 0:00:42]} 47. Rg5 {[%emt 0:00:32]} Rd3+ {[%emt 0:00:43]} 48. Ke2 {[%emt 0:00:23]} Re3+ {[%emt 0:00:30]} 49. Kd2 {[%emt 0:00:30]} Kxg5 {[%emt 0:00:00]} 0-1

[Event "Turkish Cup 2024"]
[Site "Denizli"]
[Date "2024.08.06"]
[Round "11"]
[White "Ucar, Umut Can"]
[Black "Kayan, Veli"]
[Result "0-1"]
[ECO "A48"]
[WhiteElo "1684"]
[BlackElo "1881"]
[Annotator "NA RC"]
[PlyCount "152"]
[EventDate "2024.08.01"]
[EventType "swiss"]
[EventCountry "TUR"]
[SourceTitle "playchess.com"]
[Source "ChessBase"]
[SourceQuality "1"]
[TimeControl "5400+30"]

1. d4 {[%emt 0:05:00]} d6 {[%emt 0:01:00]} 2. Bf4 {[%emt 0:00:30]} c5 {[%emt 0:00:30]} 3. c3 {[%emt 0:00:30]} Nf6 {[%emt 0:01:30]} 4. e3 {[%emt 0:00:00]} Nbd7 {[%emt 0:00:30]} 5. Nf3 {[%emt 0:00:00]} a6 {[%emt 0:00:30]} 6. Be2 {[%emt 0:00:30]} g6 {[%emt 0:00:30]} 7. h3 {[%emt 0:00:30]} Bg7 {[%emt 0:00:30]} 8. O-O {[%emt 0:00:30]} O-O {[%emt 0:00:00]} 9. a4 {[%emt 0:00:00]} b6 {[%emt 0:00:00]} 10. Nbd2 {[%emt 0:00:00]} Bb7 {[%emt 0:00:30]} 11. Re1 {[%emt 0:04:30]} Ra7 {[%emt 0:00:30]} 12. Bf1 {[%emt 0:07:30]} Qa8 {[%emt 0:03:30]} 13. Qe2 {[%emt 0:02:30]} h6 {[%emt 0:03:30]} 14. e4 {[%emt 0:02:30]} Nh5 {[%emt 0:01:30]} 15. Bh2 {[%emt 0:00:30]} e5 {[%emt 0:00:30]} 16. dxe5 {[%emt 0:00:00]} dxe5 {[%emt 0:02:30]} 17. Nc4 {[%emt 0:01:00]} f5 {[%emt 0:05:30]} 18. Nfxe5 {[%emt 0:04:30]} Nxe5 {[%emt 0:02:30]} 19. Nxe5 {[%emt 0:01:30]} Bxe5 {[%emt 0:07:30]} 20. Qc4+ {[%emt 0:00:30]} Kh7 {[%emt 0:02:30]} 21. Bxe5 {[%emt 0:00:30]} fxe4 {[%emt 0:01:30]} 22. Rad1 {[%emt 0:00:30]} Bc6 {[%emt 0:03:30]} 23. Rd6 {[%emt 0:23:30]} Re7 {[%emt 0:04:30]} 24. Re6 {[%emt 0:00:30]} Qe8 {[%emt 0:03:30]} 25. Rxe7+ {[%emt 0:05:30]} Qxe7 {[%emt 0:00:30]} 26. Bh2 {[%emt 0:02:30]} b5 {[%emt 0:01:30]} 27. axb5 {[%emt 0:00:30]} axb5 {[%emt 0:01:30]} 28. Qe2 {[%emt 0:00:30]} c4 {[%emt 0:17:30]} 29. Rd1 {[%emt 0:00:30]} Rd8 {[%emt 0:03:30]} 30. Rxd8 {[%emt 0:02:30]} Qxd8 {[%emt 0:00:30]} 31. Qe3 {[%emt 0:00:00]} Ng7 {[%emt 0:00:30]} 32. Qc5 {[%emt 0:09:00]} Qd5 {[%emt 0:01:30]} 33. Qe7 {[%emt 0:01:30]} Qe6 {[%emt 0:00:30]} 34. Qxe6 {[%emt 0:02:30]} Nxe6 {[%emt 0:00:30]} 35. Bd6 {[%emt 0:00:00]} Kg7 {[%emt 0:01:30]} 36. Be2 {[%emt 0:00:00]} h5 {[%emt 0:00:30]} 37. Kf1 {[%emt 0:00:30]} Kf6 {[%emt 0:01:30]} 38. g3 {[%emt 0:01:30]} Ng5 {[%emt 0:00:30]} 39. h4 {[%emt 0:00:30]} Nf7 {[%emt 0:00:00]} 40. Bc5 {[%emt 0:00:30]} Kf5 {[%emt 0:01:00]} 41. Ke1 {[%emt 0:01:30]} Ne5 {[%emt 0:01:30]} 42. Bd4 {[%emt 0:00:00]} Nf7 {[%emt 0:00:30]} 43. Bc5 {[%emt 0:00:00]} Nh6 {[%emt 0:00:30]} 44. Kd2 {[%emt 0:01:30]} Ke5 {[%emt 0:00:30]} 45. Bf8 {[%emt 0:01:30]} Nf5 {[%emt 0:00:30]} 46. Bc5 {[%emt 0:00:30]} Kd5 {[%emt 0:00:30]} 47. Bb6 {[%emt 0:00:00]} Bd7 {[%emt 0:00:30]} 48. Be3 {[%emt 0:01:00]} Kc6 {[%emt 0:03:30]} 49. Bf4 {[%emt 0:01:30]} Be6 {[%emt 0:00:30]} 50. Be3 {[%emt 0:00:30]} Nd6 {[%emt 0:01:30]} 51. Bd4 {[%emt 0:00:30]} Nb7 {[%emt 0:00:00]} 52. Be3 {[%emt 0:00:30]} Na5 {[%emt 0:00:00]} 53. Bd1 {[%emt 0:00:30]} Kd5 {[%emt 0:01:30]} 54. Bf4 {[%emt 0:00:30]} Nb7 {[%emt 0:00:30]} 55. Be2 {[%emt 0:00:30]} Nc5 {[%emt 0:00:00]} 56. Be3 {[%emt 0:00:00]} Nb3+ {[%emt 0:02:00]} 57. Kc2 {[%emt 0:00:00]} Bh3 {[%emt 0:00:00]} 58. Bb6 {[%emt 0:01:30]} Bf5 {[%emt 0:01:00]} 59. Be3 {[%emt 0:00:00]} Ke5 {[%emt 0:00:30]} 60. Bf4+ {[%emt 0:01:00]} Ke6 {[%emt 0:00:30]} 61. Be3 {[%emt 0:00:00]} Bh3 {[%emt 0:00:00]} 62. Bb6 {[%emt 0:00:00]} Kf5 {[%emt 0:00:00]} 63. Kd1 {[%emt 0:01:30]} Bg4 {[%emt 0:01:30]} 64. Bxg4+ {[%emt 0:02:47]} Kxg4 {[%emt 0:00:00]} 65. Ke2 {[%emt 0:01:33]} Nc1+ {[%emt 0:01:00]} 66. Ke3 {[%emt 0:00:02]} Kf5 {[%emt 0:00:30]} 67. Bc5 {[%emt 0:00:24]} Nd3 {[%emt 0:01:30]} 68. Ba3 {[%emt 0:00:02]} Ne5 {[%emt 0:01:30]} 69. Bc5 {[%emt 0:00:54]} Nd3 {[%emt 0:00:30]} 70. Ba3 {[%emt 0:00:04]} Ke5 {[%emt 0:00:30]} 71. f3 {[%emt 0:00:38]} exf3 {[%emt 0:00:30]} 72. Kxf3 {[%emt 0:00:30]} Kf5 {[%emt 0:00:30]} 73. Ke3 {[%emt 0:03:51]} Kg4 {[%emt 0:00:30]} 74. b3 {[%emt 0:00:00]} Ne1 {[%emt 0:12:50]} 75. Kd2 {[%emt 0:01:31]} Nf3+ {[%emt 0:00:30]} 76. Kc2 {[%emt 0:00:00]} Kxg3 {[%emt 0:00:00]} 0-1